[Event "POL Youth-ch U20 Girls 2020"]
[Site "Pokrzywna"]
[Date "2020.11.30"]
[Round "2.1"]
[White "Antolak, Julia"]
[Black "Parol, Pola"]
[Result "1-0"]
[ECO "B93"]
[WhiteElo "2313"]
[BlackElo "2069"]
[Annotator "ChessBase"]
[PlyCount "55"]
[EventDate "2020.11.29"]
[EventType "swiss"]
[EventCountry "POL"]
[SourceTitle "playchess.com"]
[Source "ChessBase"]
[SourceQuality "1"]
[TimeControl "40/5400+30:1800+30"]

1. e4 {[%emt 0:00:00]} c5 2. Nf3 {[%emt 0:00:00]} d6 {[%emt 0:00:00]} 3. d4 {[%emt 0:00:00]} cxd4 {[%emt 0:00:00]} 4. Nxd4 {[%emt 0:00:00]} Nf6 {[%emt 0:00:00]} 5. Nc3 {[%emt 0:00:00]} a6 {[%emt 0:00:01]} 6. f4 {[%emt 0:00:02]} g6 {[%emt 0:05:29]} 7. Nf3 {[%emt 0:00:27]} Bg7 {[%emt 0:06:06]} 8. e5 {[%emt 0:01:08]} dxe5 {[%emt 0:03:09]} 9. Qxd8+ {[%emt 0:02:00]} Kxd8 {[%emt 0:00:06]} 10. fxe5 {[%emt 0:07:27]} Ng4 {[%emt 0:10:47]} 11. Bf4 {[%emt 0:01:59]} e6 {[%emt 0:05:51]} 12. h3 {[%emt 0:13:03]} Nh6 {[%emt 0:00:12]} 13. O-O-O+ {[%emt 0:03:31]} Nd7 {[%emt 0:04:01]} 14. Ne4 {[%emt 0:04:07]} b6 {[%emt 0:08:04]} 15. Nd6 {[%emt 0:04:45]} Kc7 {[%emt 0:11:41]} 16. g4 {[%emt 0:02:46]} Rf8 {[%emt 0:02:19]} 17. Bg2 {[%emt 0:01:40]} Rb8 {[%emt 0:02:36]} 18. Rhe1 {[%emt 0:06:55]} Ng8 {[%emt 0:09:03]} 19. Ng5 {[%emt 0:05:08]} Bh6 {[%emt 0:03:34]} 20. Re4 {[%emt 0:03:50]} Bxg5 {[%emt 0:06:07]} 21. Rc4+ {[%emt 0:01:38]} Kd8 {[%emt 0:02:48]} 22. Bxg5+ {[%emt 0:00:06]} f6 {[%emt 0:00:38]} 23. exf6 {[%emt 0:01:07]} Ngxf6 {[%emt 0:01:42]} 24. Rf4 {[%emt 0:09:32]} Ke7 {[%emt 0:03:10]} 25. Ne4 {[%emt 0:03:00]} Bb7 {[%emt 0:02:31]} 26. Nxf6 {[%emt 0:01:03]} Nxf6 {[%emt 0:03:13]} 27. Bxb7 {[%emt 0:00:08]} Rxb7 {[%emt 0:00:17]} 28. Rdf1 {[%emt 0:00:07]} 1-0

[Event "POL Youth-ch U20 Girls 2020"]
[Site "Pokrzywna"]
[Date "2020.11.30"]
[Round "2.2"]
[White "Marcinczyk, Monika"]
[Black "Malicka, Maria"]
[Result "0-1"]
[ECO "B92"]
[WhiteElo "2030"]
[BlackElo "2291"]
[Annotator "ChessBase"]
[PlyCount "76"]
[EventDate "2020.11.29"]
[EventType "swiss"]
[EventCountry "POL"]
[SourceTitle "playchess.com"]
[Source "ChessBase"]
[SourceQuality "1"]
[TimeControl "40/5400+30:1800+30"]

1. e4 {[%emt 0:00:00]} c5 {[%emt 0:00:00]} 2. Nf3 {[%emt 0:00:00]} d6 {[%emt 0:00:00]} 3. d4 {[%emt 0:00:00]} cxd4 {[%emt 0:00:00]} 4. Nxd4 {[%emt 0:00:00]} Nf6 {[%emt 0:00:00]} 5. Nc3 {[%emt 0:00:00]} a6 {[%emt 0:00:00]} 6. Be2 {[%emt 0:00:01]} e5 {[%emt 0:00:01]} 7. Nb3 {[%emt 0:00:08]} Be7 {[%emt 0:00:07]} 8. Be3 {[%emt 0:00:19]} Be6 {[%emt 0:00:34]} 9. O-O {[%emt 0:01:18]} O-O {[%emt 0:00:09]} 10. Qd2 {[%emt 0:00:11]} Nbd7 {[%emt 0:00:15]} 11. a4 {[%emt 0:00:22]} Nb6 {[%emt 0:00:10]} 12. a5 {[%emt 0:00:34]} Nc4 {[%emt 0:00:06]} 13. Bxc4 {[%emt 0:00:15]} Bxc4 {[%emt 0:00:03]} 14. Rfd1 {[%emt 0:00:15]} Rc8 {[%emt 0:00:15]} 15. f3 {[%emt 0:05:11]} Rc6 {[%emt 0:00:18]} 16. Nc1 {[%emt 0:05:43]} d5 {[%emt 0:09:50]} 17. exd5 Rd6 18. Bb6 {[%emt 0:23:57]} Qc8 {[%emt 0:22:37]} 19. Nd3 {[%emt 0:13:16]} Nd7 {[%emt 0:08:37]} 20. Bf2 {[%emt 0:07:04]} Bxd5 21. Qe1 {[%emt 0:08:43]} Bc6 {[%emt 0:06:11]} 22. Bg3 Re6 {[%emt 0:06:40]} 23. b4 {[%emt 0:14:05]} Rd8 {[%emt 0:08:42]} 24. Bf2 Nf6 {[%emt 0:14:04]} 25. Ne4 {[%emt 0:11:07]} Bxe4 {[%emt 0:12:51]} 26. fxe4 {[%emt 0:00:09]} Qc6 {[%emt 0:00:04]} 27. Bb6 {[%emt 0:04:16]} Rc8 {[%emt 0:02:17]} 28. Nf2 {[%emt 0:00:08]} Qc4 {[%emt 0:00:53]} 29. Rab1 {[%emt 0:01:30]} Rec6 {[%emt 0:00:46]} 30. Nd3 {[%emt 0:01:18]} Qxe4 {[%emt 0:05:03]} 31. Nxe5 {[%emt 0:00:57]} Rxc2 {[%emt 0:01:05]} 32. Qxe4 {[%emt 0:00:33]} Nxe4 {[%emt 0:00:01]} 33. Re1 {[%emt 0:01:08]} Nd2 {[%emt 0:02:22]} 34. Rbd1 {[%emt 0:02:01]} Bxb4 {[%emt 0:00:16]} 35. Nd3 {[%emt 0:00:57]} Bf8 {[%emt 0:00:24]} 36. Rc1 {[%emt 0:01:12]} Rxc1 {[%emt 0:00:38]} 37. Rxc1 {[%emt 0:00:03]} Rxc1+ {[%emt 0:00:11]} 38. Nxc1 {[%emt 0:00:04]} Nc4 {[%emt 0:00:32]} 0-1

[Event "POL Youth-ch U20 Girls 2020"]
[Site "Pokrzywna"]
[Date "2020.11.30"]
[Round "2.3"]
[White "Cieslak, Wiktoria"]
[Black "Rudzinska, Michalina"]
[Result "0-1"]
[ECO "B42"]
[WhiteElo "2008"]
[BlackElo "2189"]
[Annotator "ChessBase"]
[PlyCount "148"]
[EventDate "2020.11.29"]
[EventType "swiss"]
[EventCountry "POL"]
[SourceTitle "playchess.com"]
[Source "ChessBase"]
[SourceQuality "1"]
[TimeControl "40/5400+30:1800+30"]

1. e4 {[%emt 0:00:00]} c5 {[%emt 0:00:00]} 2. Nf3 {[%emt 0:00:00]} e6 {[%emt 0:00:00]} 3. d4 {[%emt 0:00:00]} cxd4 {[%emt 0:00:00]} 4. Nxd4 {[%emt 0:00:00]} a6 {[%emt 0:00:00]} 5. Bd3 {[%emt 0:00:00]} Nf6 {[%emt 0:00:02]} 6. O-O {[%emt 0:00:28]} Qc7 {[%emt 0:00:09]} 7. Qe2 {[%emt 0:00:38]} d6 {[%emt 0:00:10]} 8. c4 {[%emt 0:00:24]} g6 {[%emt 0:00:17]} 9. Nc3 {[%emt 0:00:33]} Bg7 {[%emt 0:00:11]} 10. Be3 {[%emt 0:00:45]} O-O {[%emt 0:00:26]} 11. Rac1 {[%emt 0:00:56]} Nbd7 {[%emt 0:00:55]} 12. Kh1 {[%emt 0:01:00]} b6 {[%emt 0:00:36]} 13. b4 {[%emt 0:01:35]} Bb7 {[%emt 0:00:55]} 14. Nb3 {[%emt 0:01:32]} Rac8 {[%emt 0:03:48]} 15. f3 {[%emt 0:01:54]} Qb8 {[%emt 0:07:09]} 16. Na4 {[%emt 0:02:24]} Bc6 {[%emt 0:05:53]} 17. b5 {[%emt 0:00:51]} Ba8 {[%emt 0:04:33]} 18. Qf2 {[%emt 0:03:36]} Nc5 {[%emt 0:02:15]} 19. Nbxc5 {[%emt 0:04:09]} dxc5 {[%emt 0:00:35]} 20. bxa6 {[%emt 0:01:56]} Rfd8 {[%emt 0:04:31]} 21. Bc2 {[%emt 0:03:43]} Nd7 {[%emt 0:04:12]} 22. Rb1 {[%emt 0:01:50]} Qa7 {[%emt 0:03:34]} 23. Rfd1 {[%emt 0:01:57]} Qxa6 {[%emt 0:30:56]} 24. Rxd7 {[%emt 0:02:13]} Rxd7 {[%emt 0:00:05]} 25. Nxb6 {[%emt 0:00:04]} Rdc7 {[%emt 0:03:05]} 26. Nxc8 {[%emt 0:00:36]} Rxc8 {[%emt 0:00:04]} 27. Bb3 {[%emt 0:01:14]} Bf8 {[%emt 0:02:00]} 28. Rd1 {[%emt 0:01:36]} Qa3 {[%emt 0:02:04]} 29. h3 {[%emt 0:02:04]} Bc6 {[%emt 0:00:31]} 30. Qh4 {[%emt 0:00:53]} Qa5 {[%emt 0:03:08]} 31. Bd2 {[%emt 0:02:07]} Qc7 {[%emt 0:00:10]} 32. Bf4 {[%emt 0:02:50]} e5 {[%emt 0:03:32]} 33. Bg5 {[%emt 0:03:04]} Ra8 {[%emt 0:02:02]} 34. Bd8 {[%emt 0:02:21]} Qb7 {[%emt 0:03:45]} 35. Qf6 {[%emt 0:05:09]} Ba4 {[%emt 0:02:47]} 36. Bxa4 {[%emt 0:04:58]} Rxa4 {[%emt 0:00:25]} 37. Qxe5 {[%emt 0:00:05]} Rxc4 {[%emt 0:01:31]} 38. Bg5 {[%emt 0:01:23]} Rd4 {[%emt 0:05:29]} 39. Rxd4 {[%emt 0:01:21]} cxd4 {[%emt 0:00:06]} 40. Qxd4 {[%emt 0:00:00]} Qb1+ {[%emt 0:00:00]} 41. Kh2 {[%emt 0:00:37]} Qxa2 {[%emt 0:01:55]} 42. Bd2 {[%emt 0:01:45]} Qe6 {[%emt 0:04:02]} 43. Bf4 {[%emt 0:02:46]} Be7 {[%emt 0:02:11]} 44. Kh1 {[%emt 0:04:23]} h5 {[%emt 0:03:12]} 45. Bd2 {[%emt 0:04:31]} Bf6 {[%emt 0:00:48]} 46. Qe3 {[%emt 0:00:36]} Qc4 {[%emt 0:02:19]} 47. e5 {[%emt 0:01:08]} Be7 {[%emt 0:04:32]} 48. f4 {[%emt 0:05:15]} Bc5 {[%emt 0:03:04]} 49. Qf3 {[%emt 0:00:11]} Qd4 {[%emt 0:02:03]} 50. Be3 {[%emt 0:01:50]} Qxe3 {[%emt 0:00:07]} 51. Qxe3 {[%emt 0:00:05]} Bxe3 {[%emt 0:00:06]} 52. g3 {[%emt 0:00:01]} h4 {[%emt 0:05:04]} 53. Kg2 {[%emt 0:00:25]} hxg3 {[%emt 0:00:19]} 54. Kxg3 {[%emt 0:00:03]} Kf8 {[%emt 0:00:15]} 55. Kg4 {[%emt 0:00:22]} Ke7 {[%emt 0:00:10]} 56. f5 {[%emt 0:00:39]} gxf5+ {[%emt 0:00:08]} 57. Kxf5 {[%emt 0:00:07]} Bc1 {[%emt 0:00:09]} 58. h4 {[%emt 0:00:26]} Bh6 {[%emt 0:00:13]} 59. h5 {[%emt 0:00:29]} Bc1 {[%emt 0:00:06]} 60. Ke4 {[%emt 0:00:52]} Ke6 {[%emt 0:00:06]} 61. Kd4 {[%emt 0:00:36]} Bb2+ {[%emt 0:00:43]} 62. Ke4 {[%emt 0:00:04]} Bxe5 {[%emt 0:00:05]} 63. h6 {[%emt 0:00:12]} f5+ {[%emt 0:00:07]} 64. Kf3 {[%emt 0:00:05]} Kf6 {[%emt 0:00:14]} 65. h7 {[%emt 0:00:19]} Kg6 {[%emt 0:00:05]} 66. h8=Q {[%emt 0:00:17]} Bxh8 {[%emt 0:00:06]} 67. Kf4 {[%emt 0:00:04]} Kf6 {[%emt 0:00:07]} 68. Kf3 {[%emt 0:00:04]} Kg5 {[%emt 0:00:06]} 69. Kg3 {[%emt 0:00:06]} f4+ {[%emt 0:00:05]} 70. Kf3 {[%emt 0:00:02]} Kf5 {[%emt 0:00:05]} 71. Kf2 {[%emt 0:00:09]} Kg4 {[%emt 0:00:05]} 72. Kg2 {[%emt 0:00:07]} f3+ {[%emt 0:00:05]} 73. Kf2 {[%emt 0:00:05]} Bd4+ {[%emt 0:00:05]} 74. Kf1 {[%emt 0:00:08]} Kg3 {[%emt 0:00:07]} 0-1

[Event "POL Youth-ch U20 Girls 2020"]
[Site "Pokrzywna"]
[Date "2020.11.30"]
[Round "2.4"]
[White "Sowa, Wiktoria"]
[Black "Smietanska, Wiktoria"]
[Result "1-0"]
[ECO "B36"]
[WhiteElo "2093"]
[BlackElo "2013"]
[Annotator "NA"]
[PlyCount "65"]
[EventDate "2020.11.29"]
[EventType "swiss"]
[EventCountry "POL"]
[SourceTitle "playchess.com"]
[Source "ChessBase"]
[SourceQuality "1"]
[TimeControl "40/5400+30:1800+30"]

1. e4 {[%emt 0:00:00]} c5 {[%emt 0:00:00]} 2. Nf3 {[%emt 0:00:00]} g6 {[%emt 0:00:00]} 3. d4 {[%emt 0:00:25]} cxd4 {[%emt 0:00:00]} 4. Nxd4 {[%emt 0:00:13]} Nc6 {[%emt 0:00:07]} 5. c4 {[%emt 0:01:13]} Nf6 {[%emt 0:00:11]} 6. Nc3 {[%emt 0:00:30]} d6 {[%emt 0:00:22]} 7. Nc2 {[%emt 0:00:57]} Bg7 {[%emt 0:03:38]} 8. Be2 {[%emt 0:01:13]} O-O {[%emt 0:01:30]} 9. O-O {[%emt 0:01:22]} a5 {[%emt 0:01:52]} 10. Be3 {[%emt 0:03:41]} a4 {[%emt 0:05:49]} 11. f3 {[%emt 0:03:04]} Qa5 {[%emt 0:03:43]} 12. Qd2 {[%emt 0:01:58]} Nd7 {[%emt 0:03:07]} 13. Na3 {[%emt 0:03:18]} Nc5 {[%emt 0:09:58]} 14. Rab1 {[%emt 0:06:11]} Ne6 {[%emt 0:05:00]} 15. Nab5 {[%emt 0:03:01]} Bd7 {[%emt 0:12:26] [#]} 16. c5 $16 {[%emt 0:12:01]} Rfd8 {[%emt 0:11:56]} 17. cxd6 {[%emt 0:01:19]} Be8 {[%emt 0:00:46]} 18. f4 {[%emt 0:05:49]} exd6 {[%emt 0:11:02]} 19. f5 {[%emt 0:04:18]} Nc5 {[%emt 0:06:22]} 20. Bg5 {[%emt 0:03:07]} f6 {[%emt 0:02:34]} 21. Bc4+ {[%emt 0:03:38]} Kh8 {[%emt 0:00:54]} 22. Bh6 {[%emt 0:01:50]} Ne5 {[%emt 0:01:39]} 23. Be2 {[%emt 0:04:31]} g5 {[%emt 0:01:47]} 24. Bxg7+ {[%emt 0:02:06]} Kxg7 {[%emt 0:00:10]} 25. Nd4 {[%emt 0:01:12]} Bf7 {[%emt 0:02:07]} 26. Qe3 {[%emt 0:02:16]} Rac8 {[%emt 0:03:03]} 27. Kh1 {[%emt 0:01:54]} Re8 {[%emt 0:01:41]} 28. Qf2 {[%emt 0:02:37]} Nc4 {[%emt 0:01:09]} 29. Ne6+ {[%emt 0:03:19]} Bxe6 {[%emt 0:02:46]} 30. fxe6 {[%emt 0:00:12]} Nxe6 {[%emt 0:01:25]} 31. Qxf6+ {[%emt 0:00:18]} Kg8 {[%emt 0:00:03]} 32. Bxc4 {[%emt 0:00:12]} Rxc4 {[%emt 0:00:26]} 33. Qf7+ {[%emt 0:00:05]} 1-0

[Event "POL Youth-ch U20 Girls 2020"]
[Site "Pokrzywna"]
[Date "2020.11.30"]
[Round "2.5"]
[White "Goraj, Barbara"]
[Black "Czernikowska, Laura"]
[Result "1-0"]
[ECO "B44"]
[WhiteElo "2078"]
[BlackElo "1508"]
[Annotator "ChessBase"]
[PlyCount "71"]
[EventDate "2020.11.29"]
[EventType "swiss"]
[EventCountry "POL"]
[SourceTitle "playchess.com"]
[Source "ChessBase"]
[SourceQuality "1"]
[TimeControl "40/5400+30:1800+30"]

1. e4 {[%emt 0:00:00]} c5 {[%emt 0:00:00]} 2. Nf3 {[%emt 0:00:00]} e6 {[%emt 0:00:00]} 3. d4 {[%emt 0:00:00]} cxd4 {[%emt 0:00:00]} 4. Nxd4 {[%emt 0:00:06]} Nc6 {[%emt 0:00:00]} 5. Nb5 {[%emt 0:00:33]} d6 {[%emt 0:01:17]} 6. c4 {[%emt 0:00:25]} h6 {[%emt 0:06:57]} 7. Be2 {[%emt 0:01:32]} Nf6 {[%emt 0:01:09]} 8. N1c3 {[%emt 0:00:31]} Be7 {[%emt 0:03:22]} 9. Be3 {[%emt 0:01:30]} O-O {[%emt 0:03:59]} 10. O-O {[%emt 0:00:49]} b6 {[%emt 0:03:47]} 11. f3 {[%emt 0:02:33]} Bb7 {[%emt 0:03:02]} 12. Qd2 {[%emt 0:03:45]} Qd7 {[%emt 0:01:04]} 13. Rfd1 {[%emt 0:01:26]} Rfd8 {[%emt 0:02:59]} 14. Rac1 {[%emt 0:01:34]} Qc8 {[%emt 0:05:55]} 15. Bf1 {[%emt 0:16:19]} Ne8 {[%emt 0:08:35]} 16. Nd5 {[%emt 0:02:46]} exd5 {[%emt 0:13:47]} 17. cxd5 {[%emt 0:01:20]} Qd7 {[%emt 0:01:31]} 18. dxc6 {[%emt 0:00:14]} Bxc6 {[%emt 0:00:52]} 19. Nd4 {[%emt 0:02:14]} Rdc8 {[%emt 0:10:33]} 20. Rxc6 {[%emt 0:02:08]} Rxc6 {[%emt 0:00:39]} 21. Bb5 {[%emt 0:00:21]} Rac8 {[%emt 0:02:01]} 22. Nxc6 {[%emt 0:00:18]} Qb7 {[%emt 0:04:42]} 23. Nxe7+ {[%emt 0:00:18]} Qxe7 {[%emt 0:00:13]} 24. Bxe8 {[%emt 0:02:05]} Qxe8 {[%emt 0:00:13]} 25. b3 {[%emt 0:01:10]} Qb5 {[%emt 0:02:37]} 26. h3 {[%emt 0:02:07]} Rd8 {[%emt 0:03:30]} 27. Kh1 {[%emt 0:00:42]} Qc6 {[%emt 0:05:26]} 28. Qd3 {[%emt 0:00:45]} Kf8 {[%emt 0:01:26]} 29. Rc1 {[%emt 0:00:21]} Qb7 {[%emt 0:00:26]} 30. Qd5 {[%emt 0:00:28]} Qe7 {[%emt 0:00:56]} 31. Rd1 {[%emt 0:01:42]} g5 {[%emt 0:00:59]} 32. Qf5 {[%emt 0:01:14]} Kg7 {[%emt 0:01:04]} 33. f4 {[%emt 0:02:32]} f6 {[%emt 0:00:43]} 34. Bd4 {[%emt 0:00:26]} Re8 {[%emt 0:01:29]} 35. fxg5 {[%emt 0:00:12]} hxg5 {[%emt 0:00:27]} 36. Qxg5+ {[%emt 0:00:10]} 1-0

[Event "POL Youth-ch U20 Girls 2020"]
[Site "Pokrzywna"]
[Date "2020.11.30"]
[Round "2.6"]
[White "Budkiewicz, Magdalena"]
[Black "Starosta, Martyna"]
[Result "1-0"]
[ECO "C88"]
[WhiteElo "1672"]
[BlackElo "2094"]
[Annotator "ChessBase"]
[PlyCount "75"]
[EventDate "2020.11.29"]
[EventType "swiss"]
[EventCountry "POL"]
[SourceTitle "playchess.com"]
[Source "ChessBase"]
[SourceQuality "1"]
[TimeControl "40/5400+30:1800+30"]

1. e4 {[%emt 0:00:00]} e5 {[%emt 0:00:00]} 2. Nf3 {[%emt 0:00:00]} Nc6 {[%emt 0:00:00]} 3. Bb5 {[%emt 0:00:00]} a6 {[%emt 0:00:00]} 4. Ba4 {[%emt 0:00:00]} Nf6 {[%emt 0:00:00]} 5. O-O {[%emt 0:00:18]} Be7 {[%emt 0:00:05]} 6. Re1 {[%emt 0:00:19]} b5 {[%emt 0:00:04]} 7. Bb3 {[%emt 0:00:08]} O-O {[%emt 0:00:06]} 8. a4 {[%emt 0:00:07]} Bb7 {[%emt 0:00:21]} 9. d3 {[%emt 0:00:29]} d6 {[%emt 0:00:23]} 10. Nc3 {[%emt 0:00:28]} b4 {[%emt 0:02:09]} 11. Nd5 {[%emt 0:00:38]} Nxd5 {[%emt 0:10:05]} 12. Bxd5 {[%emt 0:00:14]} Na5 {[%emt 0:01:29]} 13. Ba2 {[%emt 0:03:01]} c5 {[%emt 0:03:13]} 14. c3 {[%emt 0:02:30]} Nc6 {[%emt 0:04:39]} 15. d4 {[%emt 0:03:42]} Qc7 {[%emt 0:08:04]} 16. Be3 {[%emt 0:04:18]} cxd4 {[%emt 0:07:33]} 17. cxd4 {[%emt 0:00:44]} Bf6 {[%emt 0:02:07]} 18. Rc1 {[%emt 0:03:17]} Qe7 {[%emt 0:03:13]} 19. d5 {[%emt 0:03:53]} Na7 {[%emt 0:04:59]} 20. Bb6 {[%emt 0:02:52]} Rfc8 {[%emt 0:04:25]} 21. Qd2 {[%emt 0:04:24]} b3 {[%emt 0:11:57]} 22. Bxb3 {[%emt 0:00:32]} Qd7 {[%emt 0:01:38]} 23. Qe3 {[%emt 0:01:30]} Rxc1 {[%emt 0:09:11]} 24. Rxc1 {[%emt 0:00:14]} Nc8 {[%emt 0:01:34]} 25. Rc7 {[%emt 0:00:20]} Nxb6 {[%emt 0:00:28]} 26. Rxd7 {[%emt 0:03:05]} Nxd7 {[%emt 0:00:03]} 27. Nd2 {[%emt 0:02:05]} h6 {[%emt 0:01:10]} 28. Nc4 {[%emt 0:00:56]} Bg5 {[%emt 0:00:33]} 29. Qf3 {[%emt 0:01:32]} Be7 {[%emt 0:01:28]} 30. h3 {[%emt 0:03:05]} Bc8 {[%emt 0:01:54]} 31. Na5 {[%emt 0:02:32]} Nc5 {[%emt 0:00:33]} 32. Nc6 {[%emt 0:01:12]} Kf8 {[%emt 0:00:54]} 33. Bc2 {[%emt 0:01:00]} Bd7 {[%emt 0:01:24]} 34. b4 {[%emt 0:00:38]} Nb7 {[%emt 0:01:44]} 35. Qc3 {[%emt 0:06:50]} Rc8 {[%emt 0:01:22]} 36. Bd3 {[%emt 0:09:29]} a5 {[%emt 0:01:53]} 37. Ba6 {[%emt 0:01:20]} Rc7 {[%emt 0:00:40]} 38. b5 {[%emt 0:02:06]} 1-0

[Event "POL Youth-ch U20 Girls 2020"]
[Site "Pokrzywna"]
[Date "2020.11.30"]
[Round "2.7"]
[White "Kiolbasa, Oliwia"]
[Black "Zabrzanska, Weronika"]
[Result "1-0"]
[ECO "C78"]
[WhiteElo "2260"]
[BlackElo "1849"]
[Annotator "ChessBase"]
[PlyCount "61"]
[EventDate "2020.11.29"]
[EventType "swiss"]
[EventCountry "POL"]
[SourceTitle "playchess.com"]
[Source "ChessBase"]
[SourceQuality "1"]
[TimeControl "40/5400+30:1800+30"]

1. e4 {[%emt 0:00:00]} e5 {[%emt 0:00:00]} 2. Nf3 {[%emt 0:00:00]} Nc6 {[%emt 0:00:00]} 3. Bb5 {[%emt 0:00:00]} a6 {[%emt 0:00:00]} 4. Ba4 {[%emt 0:00:05]} Nf6 {[%emt 0:00:04]} 5. O-O {[%emt 0:00:57]} Bc5 {[%emt 0:00:42]} 6. d3 {[%emt 0:07:31]} d6 {[%emt 0:00:28]} 7. c3 {[%emt 0:04:15]} b5 {[%emt 0:02:15]} 8. Bb3 {[%emt 0:00:36]} O-O {[%emt 0:00:30]} 9. h3 {[%emt 0:04:39]} h6 {[%emt 0:01:13]} 10. Re1 {[%emt 0:00:20]} Ba7 {[%emt 0:00:40]} 11. Nbd2 {[%emt 0:01:00]} Re8 {[%emt 0:01:41]} 12. Nf1 {[%emt 0:03:14]} d5 {[%emt 0:03:24]} 13. exd5 {[%emt 0:09:47]} Nxd5 {[%emt 0:00:16]} 14. d4 {[%emt 0:00:08]} e4 {[%emt 0:02:48]} 15. N3d2 {[%emt 0:05:12]} f5 {[%emt 0:01:55]} 16. Ne3 {[%emt 0:07:32]} Nce7 {[%emt 0:01:28]} 17. f3 {[%emt 0:00:30]} c5 {[%emt 0:14:05]} 18. Nxd5 {[%emt 0:01:05]} Nxd5 {[%emt 0:00:41]} 19. fxe4 {[%emt 0:00:30]} c4 {[%emt 0:02:14]} 20. Bc2 {[%emt 0:02:15]} fxe4 {[%emt 0:02:26]} 21. Nxe4 {[%emt 0:11:19]} Bb7 {[%emt 0:06:34]} 22. Bxh6 {[%emt 0:11:58]} gxh6 {[%emt 0:02:42]} 23. Qg4+ {[%emt 0:00:29]} Kh8 {[%emt 0:00:08]} 24. Qg6 {[%emt 0:04:05]} Qh4 {[%emt 0:04:11]} 25. Nd6 {[%emt 0:03:12]} Rxe1+ {[%emt 0:05:12]} 26. Rxe1 {[%emt 0:00:11]} Bxd4+ {[%emt 0:01:12]} 27. cxd4 {[%emt 0:00:31]} Qxd4+ {[%emt 0:02:53]} 28. Kh1 {[%emt 0:00:29]} Qg7 {[%emt 0:00:30]} 29. Nf7+ {[%emt 0:00:29]} Kg8 {[%emt 0:00:17]} 30. Nxh6+ {[%emt 0:00:07]} Kh8 {[%emt 0:00:11]} 31. Re8+ {[%emt 0:00:15]} 1-0

[Event "POL Youth-ch U20 Girls 2020"]
[Site "Pokrzywna"]
[Date "2020.11.30"]
[Round "2.8"]
[White "Wikar, Martyna"]
[Black "Pietrzak, Emilia"]
[Result "1-0"]
[ECO "B30"]
[WhiteElo "2171"]
[BlackElo "1522"]
[Annotator "NA"]
[PlyCount "87"]
[EventDate "2020.11.29"]
[EventType "swiss"]
[EventCountry "POL"]
[SourceTitle "playchess.com"]
[Source "ChessBase"]
[SourceQuality "1"]
[TimeControl "40/5400+30:1800+30"]

1. e4 {[%emt 0:00:00]} c5 {[%emt 0:00:00]} 2. Nf3 {[%emt 0:00:00]} Nc6 {[%emt 0:00:00]} 3. Bb5 {[%emt 0:00:00]} d6 {[%emt 0:00:00]} 4. O-O {[%emt 0:00:34]} Bd7 {[%emt 0:00:00]} 5. c3 {[%emt 0:02:15]} a6 {[%emt 0:00:00]} 6. Ba4 {[%emt 0:01:24]} b5 {[%emt 0:00:24]} 7. Bc2 {[%emt 0:00:14]} e5 {[%emt 0:01:42]} 8. h3 {[%emt 0:06:15]} Nf6 {[%emt 0:02:11]} 9. d4 {[%emt 0:00:50]} exd4 {[%emt 0:05:29]} 10. cxd4 {[%emt 0:01:05]} cxd4 {[%emt 0:05:49]} 11. Nxd4 {[%emt 0:01:10]} Be7 {[%emt 0:01:59]} 12. Nc3 {[%emt 0:03:01]} O-O {[%emt 0:02:03]} 13. Be3 {[%emt 0:02:29]} Qc7 {[%emt 0:05:01]} 14. Rc1 {[%emt 0:03:18]} Nxd4 {[%emt 0:05:46]} 15. Bxd4 {[%emt 0:05:08]} Bc6 {[%emt 0:05:39]} 16. Qd3 {[%emt 0:06:01]} g6 {[%emt 0:12:30]} 17. Bb3 $16 {[%emt 0:05:47]} Qd7 {[%emt 0:05:31]} 18. Rfe1 {[%emt 0:08:13]} b4 {[%emt 0:06:25]} 19. Nd5 {[%emt 0:00:55]} Nxd5 {[%emt 0:00:47]} 20. exd5 {[%emt 0:01:11]} Bb5 {[%emt 0:00:54]} 21. Qd2 {[%emt 0:01:14]} a5 {[%emt 0:01:46]} 22. Qh6 {[%emt 0:01:26]} f6 23. Re6 {[%emt 0:03:38]} Rf7 {[%emt 0:04:28]} 24. Rce1 {[%emt 0:04:12]} Rc8 {[%emt 0:03:44]} 25. Qe3 {[%emt 0:03:19]} Rc7 {[%emt 0:01:45]} 26. Bb6 {[%emt 0:01:19]} Rb7 {[%emt 0:05:07]} 27. Bxa5 {[%emt 0:00:22]} Bf8 {[%emt 0:01:18]} 28. Bxb4 {[%emt 0:01:17]} Ba6 {[%emt 0:01:50]} 29. Bc3 {[%emt 0:00:49]} Bg7 {[%emt 0:00:31]} 30. Re8+ {[%emt 0:01:16]} Rf8 {[%emt 0:01:17]} 31. Rxf8+ {[%emt 0:00:53]} Kxf8 {[%emt 0:00:17]} 32. Qf4 {[%emt 0:01:13]} Bd3 {[%emt 0:02:04]} 33. Bxf6 {[%emt 0:01:15]} Bf5 {[%emt 0:00:58]} 34. Ba4 {[%emt 0:03:24]} Qc7 {[%emt 0:03:11]} 35. Bxg7+ {[%emt 0:03:18]} Kxg7 {[%emt 0:00:17]} 36. Qd4+ {[%emt 0:00:38]} Kg8 {[%emt 0:02:15]} 37. Bc6 {[%emt 0:04:55]} Rb8 {[%emt 0:01:03]} 38. b4 {[%emt 0:00:48]} Rd8 {[%emt 0:00:44]} 39. a4 {[%emt 0:00:27]} Rb8 {[%emt 0:00:07]} 40. a5 {[%emt 0:00:00]} Bc8 {[%emt 0:00:00]} 41. Re8+ {[%emt 0:01:25]} Kf7 {[%emt 0:00:44]} 42. Qh8 {[%emt 0:00:32]} g5 {[%emt 0:00:29]} 43. Qxh7+ {[%emt 0:00:19]} Kf6 {[%emt 0:00:02]} 44. Qxc7 {[%emt 0:00:14]} 1-0

[Event "POL Youth-ch U20 Girls 2020"]
[Site "Pokrzywna"]
[Date "2020.11.30"]
[Round "2.9"]
[White "Furtak, Joanna"]
[Black "Dylag, Emilia"]
[Result "0-1"]
[ECO "B12"]
[WhiteElo "1837"]
[BlackElo "2082"]
[Annotator "ChessBase"]
[PlyCount "64"]
[EventDate "2020.11.29"]
[EventType "swiss"]
[EventCountry "POL"]
[SourceTitle "playchess.com"]
[Source "ChessBase"]
[SourceQuality "1"]
[TimeControl "40/5400+30:1800+30"]

1. e4 {[%emt 0:00:00]} c6 {[%emt 0:00:00]} 2. d4 {[%emt 0:00:00]} d5 {[%emt 0:00:00]} 3. e5 {[%emt 0:00:00]} c5 {[%emt 0:00:00]} 4. dxc5 {[%emt 0:00:00]} Nc6 {[%emt 0:00:02]} 5. f4 {[%emt 0:00:00]} Nh6 {[%emt 0:00:35]} 6. Nf3 {[%emt 0:00:49]} Bg4 {[%emt 0:00:51]} 7. Be3 {[%emt 0:02:13]} e6 {[%emt 0:01:26]} 8. Bf2 {[%emt 0:09:01]} Nf5 {[%emt 0:02:18]} 9. Nc3 {[%emt 0:09:15]} g5 {[%emt 0:04:26]} 10. fxg5 {[%emt 0:06:24]} Qa5 {[%emt 0:08:49]} 11. Qd2 {[%emt 0:01:34]} Bxc5 {[%emt 0:05:16]} 12. Bxc5 {[%emt 0:02:21]} Qxc5 {[%emt 0:00:07]} 13. O-O-O {[%emt 0:01:45]} O-O-O {[%emt 0:05:30]} 14. Bd3 {[%emt 0:05:04]} Bxf3 {[%emt 0:06:50]} 15. gxf3 {[%emt 0:00:07]} d4 {[%emt 0:00:34]} 16. Ne4 {[%emt 0:08:18]} Qxe5 {[%emt 0:03:19]} 17. h4 {[%emt 0:02:45]} Ne3 {[%emt 0:07:39]} 18. Rde1 {[%emt 0:00:55]} Qd5 {[%emt 0:02:52]} 19. Kb1 {[%emt 0:01:31]} Ne5 {[%emt 0:01:49]} 20. Nf6 {[%emt 0:02:52]} Qc5 {[%emt 0:08:10]} 21. Be2 {[%emt 0:10:11]} Kb8 {[%emt 0:16:05]} 22. h5 {[%emt 0:03:46]} Ka8 {[%emt 0:04:51]} 23. f4 {[%emt 0:19:18]} Nc6 {[%emt 0:01:00]} 24. Ng4 {[%emt 0:01:14]} Nb4 {[%emt 0:03:15]} 25. Ne5 {[%emt 0:04:42]} Rc8 {[%emt 0:10:15]} 26. Rc1 {[%emt 0:01:03]} Nbd5 {[%emt 0:02:00]} 27. Nd3 {[%emt 0:02:45]} Qb6 {[%emt 0:00:24]} 28. Bf3 {[%emt 0:03:11]} Nc4 {[%emt 0:00:58]} 29. Qf2 {[%emt 0:00:52]} Nc3+ {[%emt 0:02:26]} 30. Ka1 {[%emt 0:00:10]} Qa5 {[%emt 0:00:19]} 31. a3 {[%emt 0:01:42]} Nxa3 {[%emt 0:00:17]} 32. bxc3 {[%emt 0:00:54]} Nb5+ {[%emt 0:00:21]} 0-1